bitfinex/quotes_SOLUSD_20251208
["timestamp","ask_amount","ask_price","bid_price","bid_amount"]
[1765194419757,8.22764884,138.36,138.34,0.7]
[1765194420061,0.99999999,138.35,138.34,0.7]
[1765194420442,7.22764885,138.36,138.34,0.7]
[1765194420443,8.22764884,138.36,138.34,0.7]
[1765194420752,0.99999999,138.35,138.34,0.7]
[1765194421049,0.99999999,138.38,138.34,6.28182185]
[1765194421257,0.99999999,138.37,138.34,0.7]
[1765194421557,8.22752239,138.36,138.35,0.7]
[1765194421863,8.22752239,138.36,138.35,6.28182185]
[1765194423135,8.22752239,138.36,138.35,0.7]
[1765194423340,8.22752239,138.36,138.35,0.51585159]
[1765194424442,8.22752239,138.36,138.35,6.09767344]
[1765194425263,8.22752239,138.36,138.35,0.51585159]
[1765194425449,7.2275224,138.36,138.35,6.09767344]
[1765194425653,8.22752239,138.36,138.35,6.09767344]
[1765194425856,0.99999999,138.36,138.35,6.09767344]
[1765194426156,8.22657874,138.38,138.35,6.09767344]
[1765194426340,0.99999999,138.37,138.36,6.28182185]
[1765194427072,0.99999999,138.37,138.36,0.7]
[1765194427475,8.22700006,138.37,138.36,0.7]
[1765194428077,8.22700006,138.37,138.32,7.22948958]
[1765194428078,0.99999999,138.33,138.32,0.7]
[1765194428572,8.22700006,138.37,138.32,6.28182185]
[1765194428771,0.99999999,138.36,138.32,6.28182185]
[1765194428960,0.99999999,138.36,138.35,5.58182185]
[1765194429273,8.22700006,138.37,138.33,0.7]
[1765194429456,0.99999999,138.36,138.35,5.58182185]
[1765194429778,0.99999999,138.36,138.33,0.7]
[1765194429974,0.99999999,138.36,138.35,5.58182185]
[1765194430163,0.99999999,138.36,138.35,13.50182185]
[1765194430366,8.22752239,138.36,138.35,14.20182185]
[1765194430564,7.2275224,138.36,138.35,8.62]
[1765194430765,8.22752239,138.36,138.35,8.62]
[1765194432274,41.40809517,138.36,138.31,0.7]
[1765194432581,41.40809517,138.36,138.28,7.92]
[1765194432582,0.99999999,138.31,138.28,7.92]
[1765194432955,0.99999999,138.29,138.28,7.92]
[1765194433163,0.99999999,138.27,138.26,0.7]
[1765194434193,8.23222679,138.27,138.24,5.58182185]
[1765194434356,8.23222679,138.27,138.24,13.50182185]
[1765194434556,8.23222679,138.27,138.25,0.7]
[1765194434763,0.99999999,138.26,138.25,0.7]
[1765194434960,0.99999999,138.3,138.26,7.23261653]
[1765194435456,4.72275162,138.32,138.26,7.23261653]
[1765194435457,0.99999999,138.29,138.27,0.7]
[1765194435972,0.99999999,138.28,138.2,18.08919075]
[1765194436196,0.99999999,138.28,138.22,8.62]
[1765194436197,0.99999999,138.27,138.22,8.62]
[1765194436494,0.99999999,138.27,138.26,5.58182185]
[1765194436698,8.23240541,138.27,138.24,5.58182185]
[1765194436891,8.23240541,138.27,138.25,0.7]
[1765194437091,8.23240541,138.27,138.25,6.28182185]
[1765194437453,8.23240541,138.27,138.24,5.58182185]
[1765194437659,8.23240541,138.27,138.25,0.7]
[1765194437859,8.23240541,138.27,138.25,6.28182185]
[1765194438380,8.23240541,138.27,138.26,0.7]
[1765194438786,8.23240541,138.27,138.23,0.7]
[1765194438968,0.99999999,138.26,138.23,6.28182185]
[1765194439292,0.99999999,138.25,138.22,7.92]
[1765194439466,0.99999999,138.24,138.22,7.92]
[1765194439668,0.99999999,138.24,138.21,0.46057012]
[1765194439669,0.99999999,138.22,138.21,0.46057012]
[1765194440084,0.99999999,138.22,138.21,6.74239197]
[1765194440284,5.70857594,138.26,138.21,6.74239197]
[1765194440592,0.99999999,138.26,138.24,5.58182185]
[1765194440904,0.99999999,138.27,138.24,13.50182185]
[1765194441071,0.99999999,138.27,138.25,0.7]
[1765194441268,0.99999999,138.22,138.21,0.46057012]
[1765194441473,25.31285525,138.27,138.21,6.04239197]
[1765194441474,0.99999999,138.23,138.21,6.04239197]
[1765194441664,0.99999999,138.25,138.22,5.58182185]
[1765194441985,8.23228824,138.27,138.24,5.58182185]
[1765194442189,8.23228824,138.27,138.25,0.7]
[1765194442372,0.99999999,138.26,138.23,12.81599727]
[1765194442561,0.99999999,138.26,138.23,5.58182185]
[1765194442797,0.99999999,138.24,138.23,0.7]
[1765194442994,0.99999999,138.24,138.21,1.16057012]
[1765194443289,0.99999999,138.23,138.22,0.7]
[1765194443666,0.99999999,138.24,138.22,6.28182185]
[1765194443969,0.99999999,138.25,138.23,6.28182185]
[1765194444193,0.99999999,138.27,138.24,5.58182185]
[1765194444496,0.99999999,138.26,138.24,6.28182185]
[1765194444796,0.99999999,138.27,138.25,14.20182185]
[1765194444986,0.99999999,138.27,138.26,6.28182185]
[1765194446588,0.99999999,138.27,138.26,13.51457174]
[1765194446890,0.99999999,138.27,138.26,13.15251174]
[1765194447198,0.99999999,138.31,138.26,13.51457174]
[1765194447404,0.99999999,138.32,138.3,5.58182185]
[1765194447582,0.99999999,138.32,138.31,13.50182185]
[1765194447964,0.99999999,138.32,138.31,14.20182185]
[1765194448576,0.99999999,138.33,138.31,14.20182185]
[1765194448782,0.99999999,138.32,138.31,15.1501352]
[1765194449374,0.99999999,138.32,138.31,15.8501352]
[1765194449570,0.99999999,138.32,138.31,15.1501352]
[1765194449772,7.22815635,138.35,138.28,18.07845832]
[1765194449773,0.99999999,138.29,138.28,0.7]
[1765194449978,0.99999999,138.29,138.28,14.20182185]
[1765194450498,0.99999999,138.3,138.28,21.43322455]
[1765194450794,0.99999999,138.3,138.29,6.28182185]
[1765194451166,0.99999999,138.31,138.29,6.28182185]
[1765194451372,0.99999999,138.3,138.29,0.7]
[1765194451586,0.99999999,138.3,138.29,6.28182185]
[1765194451786,0.99999999,138.31,138.29,6.28182185]
[1765194451996,0.99999999,138.3,138.29,0.7]
[1765194452506,0.99999999,138.3,138.29,7.93118085]
[1765194453188,0.99999999,138.3,138.29,13.5130027]
[1765194453789,0.99999999,138.31,138.29,13.5130027]
[1765194453993,0.99999999,138.31,138.3,6.28182185]
[1765194454204,0.99999999,138.31,138.3,0.7]
[1765194454899,0.99999999,138.31,138.3,6.28182185]
[1765194455073,0.99999999,138.31,138.3,13.51247983]
[1765194455692,0.99999999,138.34,138.3,13.51247983]
[1765194455897,0.99999999,138.35,138.33,5.58182185]
[1765194456200,0.99999999,138.36,138.34,13.50182185]
[1765194456498,0.99999999,138.35,138.34,13.50182185]
[1765194456673,0.99999999,138.35,138.34,14.20182185]
[1765194458410,5.76809374,138.35,138.34,14.20182185]
[1765194459407,5.76809374,138.35,138.34,13.50182185]
[1765194460694,13.65613855,138.35,138.31,7.23001424]
[1765194460893,0.99999999,138.33,138.32,7.92]
[1765194461115,5.76809374,138.33,138.32,7.92]
[1765194462207,0.99999999,138.27,138.26,7.92]
[1765194462501,5.76809374,138.27,138.26,14.20182185]
[1765194462713,0.99999999,138.27,138.26,14.20182185]
[1765194462916,0.99999999,138.27,138.26,21.43457174]
[1765194463096,0.99999999,138.29,138.26,21.43457174]
[1765194463302,0.99999999,138.29,138.28,5.58182185]
[1765194463705,0.99999999,138.29,138.28,6.28182185]
[1765194464517,5.81798184,138.31,138.28,6.28182185]
[1765194464697,5.81798184,138.31,138.29,13.50182185]
[1765194464698,0.99999999,138.31,138.29,13.50182185]
[1765194464894,4.8179571,138.3,138.29,14.20182185]
[1765194465521,4.8179571,138.3,138.29,21.4330027]
[1765194466017,5.81824191,138.3,138.29,8.62]
[1765194466317,0.99999999,138.31,138.29,21.4330027]
[1765194466821,0.99999999,138.31,138.3,7.93065798]
[1765194467028,0.99999999,138.31,138.3,13.51247983]
[1765194467713,5.82040533,138.33,138.3,13.51247983]
[1765194467907,0.99999999,138.32,138.31,6.28182185]
[1765194470611,0.99999999,138.32,138.31,13.51157875]
[1765194473407,0.99999999,138.32,138.31,6.28182185]
[1765194474825,0.99999999,138.33,138.31,13.51195705]
[1765194475024,1.16856869,138.33,138.32,13.50182185]
[1765194475225,1.16856869,138.33,138.32,7.92]
[1765194476430,1.16856869,138.33,138.32,13.50182185]
[1765194476726,1.16856869,138.33,138.32,17.24148147]
[1765194476936,1.16856869,138.33,138.32,25.17109396]
[1765194477635,0.1685687,138.33,138.32,25.17109396]
[1765194478135,1.16856869,138.33,138.32,25.17109396]
[1765194478707,1.16856869,138.33,138.32,15.84961249]
[1765194478913,1.16856869,138.33,138.32,7.92]
[1765194479312,1.87856869,138.33,138.32,7.92]
[1765194479813,9.10765854,138.33,138.32,7.92]
[1765194480024,1.87856869,138.33,138.32,7.92]
[1765194480936,1.16856869,138.33,138.32,7.92]
[1765194482020,1.16856869,138.33,138.32,15.81961249]
[1765194482214,1.16856869,138.33,138.32,25.14109396]
[1765194483628,0.1685687,138.33,138.32,25.14109396]
[1765194484146,0.99999999,138.38,138.32,43.21512519]
[1765194484314,0.99999999,138.37,138.33,0.67]
[1765194484519,0.99999999,138.37,138.36,9.32148147]
[1765194484733,0.99999999,138.37,138.36,9.99148147]
[1765194485044,0.99999999,138.38,138.37,7.22700007]
[1765194485253,0.99999999,138.38,138.37,15.81700007]
[1765194485823,0.99999999,138.38,138.37,25.13848154]
[1765194487442,0.99999999,138.38,138.37,15.81700007]
[1765194487952,0.99999999,138.38,138.37,25.13848154]
[1765194493737,0.99999999,138.4,138.37,43.20598172]
[1765194494044,10.03148147,138.44,138.39,9.32148147]
[1765194494045,0.99999999,138.41,138.39,9.32148147]
[1765194494263,0.99999999,138.41,138.4,7.92]
[1765194495249,0.99999999,138.43,138.4,25.13691499]
[1765194495550,0.99999999,138.42,138.41,17.91148147]
[1765194496847,0.99999999,138.43,138.41,17.91148147]
[1765194497047,0.99999999,138.43,138.41,17.24148147]
[1765194497348,0.99999999,138.43,138.42,7.22438953]
[1765194497546,0.99999999,138.44,138.42,7.89438953]
[1765194497850,0.99999999,138.44,138.43,7.92]
[1765194498729,0.99999999,138.44,138.43,8.59]
[1765194499250,0.99999999,138.44,138.43,15.81386765]
[1765194499746,0.99999999,138.45,138.43,19.15480662]
[1765194499936,0.99999999,138.45,138.44,4.01093897]
[1765194500146,0.99999999,138.45,138.43,19.15480662]
[1765194500552,0.99999999,138.42,138.37,0.67]
[1765194500734,0.99999999,138.41,138.39,7.22558588]
[1765194500934,3.34093897,138.43,138.39,7.22558588]
[1765194500935,0.99999999,138.4,138.39,7.22558588]
[1765194501634,0.99999999,138.4,138.38,15.14627374]
[1765194504442,0.99999999,138.4,138.38,15.84627374]
[1765194505249,0.99999999,138.4,138.38,15.14627374]
[1765194505449,0.66,138.39,138.38,15.14627374]
[1765194505653,1.65999999,138.39,138.38,7.92]
[1765194506058,0.99999999,138.39,138.38,7.92]
[1765194508147,0.99999999,138.39,138.38,15.14647781]
[1765194510479,0.99999999,138.39,138.38,24.46030417]
[1765194511969,0.99999999,138.39,138.38,25.16030417]
[1765194512481,0.99999999,138.4,138.38,25.16030417]
[1765194512680,0.99999999,138.41,138.39,10.01382636]
[1765194512866,0.99999999,138.41,138.4,17.23382636]
[1765194513048,0.99999999,138.41,138.4,17.93382636]
[1765194513766,0.99999999,138.42,138.4,17.93382636]
[1765194513967,0.99999999,138.44,138.41,10.01382636]
[1765194514178,0.99999999,138.43,138.42,17.23382636]
[1765194514879,0.99999999,138.43,138.42,24.45821589]
[1765194515268,0.99999999,138.43,138.42,17.23382636]
[1765194515586,0.99999999,138.43,138.42,24.45821589]
[1765194516454,1.65999999,138.43,138.4,7.92]
[1765194516778,0.99999999,138.41,138.4,7.92]
[1765194517574,0.99999999,138.41,138.4,17.93382636]
[1765194517771,0.99999999,138.41,138.4,25.15925988]
[1765194517972,0.99999999,138.42,138.4,25.15925988]
[1765194518170,0.99999999,138.42,138.41,9.31382636]
[1765194518583,0.99999999,138.42,138.41,10.01382636]
[1765194519169,0.99999999,138.42,138.41,9.31382636]
[1765194519373,0.99999999,138.42,138.41,10.01382636]
[1765194519883,0.99999999,138.42,138.41,17.23873785]
[1765194520269,0.99999999,138.43,138.41,17.23873785]
[1765194520470,0.99999999,138.42,138.41,17.23873785]
[1765194520672,0.99999999,138.42,138.41,25.15873785]
[1765194521582,0.99999999,138.42,138.41,24.45873785]
[1765194522798,1.65999999,138.42,138.41,7.92]
[1765194524758,8.88438952,138.42,138.41,7.92]
[1765194525895,8.88438952,138.42,138.41,4.9396]
[1765194526584,8.88438952,138.42,138.36,65.24272625]
[1765194526585,0.99999999,138.4,138.36,65.24272625]
[1765194526770,0.99999999,138.39,138.37,7.92]
[1765194526975,0.99999999,138.38,138.37,7.92]
[1765194527784,0.99999999,138.38,138.37,15.14693503]
[1765194528092,0.99999999,138.38,138.37,18.48966128]
[1765194528279,0.99999999,138.38,138.37,19.18966128]
[1765194529460,0.99999999,138.39,138.37,19.18966128]
[1765194529663,0.99999999,138.38,138.37,15.84693503]
[1765194530979,0.99999999,138.38,138.37,19.18966128]
[1765194532991,0.99999999,138.39,138.37,19.18966128]
[1765194533169,0.99999999,138.38,138.37,15.84693503]
[1765194534276,0.99999999,138.38,138.37,19.18966128]
[1765194534487,0.99999999,138.39,138.37,19.18966128]
[1765194534701,0.99999999,138.39,138.38,3.34272625]
[1765194535671,0.99999999,138.39,138.37,15.84693503]
[1765194535871,0.99999999,138.39,138.38,3.34272625]
[1765194538196,0.99999999,138.39,138.38,11.27920406]
[1765194538793,0.99999999,138.39,138.38,10.07587866]
[1765194539203,0.99999999,138.4,138.38,10.07587866]
[1765194539378,0.99999999,138.41,138.39,10.77940085]
[1765194539706,0.99999999,138.42,138.4,2.13940085]
[1765194539881,0.99999999,138.42,138.41,10.05940085]
[1765194540086,0.99999999,138.43,138.42,7.22438953]
[1765194540385,0.99999999,138.43,138.42,18.00379038]
[1765194540585,0.99999999,138.44,138.42,18.00379038]
[1765194540790,0.99999999,138.44,138.43,2.85940085]
[1765194542295,1.09999999,138.46,138.43,10.0832685]
[1765194542499,0.1,138.46,138.45,2.13940085]
[1765194542902,0.1,138.46,138.45,2.85940085]
[1765194543904,0.1,138.46,138.45,10.08222497]
[1765194547394,0.1,138.46,138.45,71.98222497]
[1765194552704,0.1,138.49,138.45,90.03928528]
[1765194552903,0.1,138.49,138.48,2.13940085]
[1765194553093,0.1,138.49,138.48,10.05940085]
[1765194553291,0.1,138.52,138.48,28.14694917]
[1765194553505,0.1,138.52,138.51,9.35909617]
[1765194553804,0.1,138.52,138.51,17.27909617]
[1765194554003,0.1,138.52,138.51,17.99909617]
[1765194554412,0.99999999,138.51,138.49,10.05940085]
[1765194554785,1.65999999,138.51,138.49,7.92]
[1765194555007,1.65999999,138.5,138.49,7.92]
[1765194555191,0.99999999,138.47,138.45,2.13940085]
[1765194555388,0.99999999,138.48,138.46,15.14215847]
[1765194555589,0.99999999,138.48,138.47,2.13940085]
[1765194555896,0.99999999,138.5,138.47,2.85940085]
[1765194556412,0.99999999,138.49,138.47,2.85940085]
[1765194556586,0.99999999,138.5,138.48,2.13940085]
[1765194556908,0.99999999,138.5,138.49,10.05940085]
[1765194557713,0.99999999,138.5,138.49,7.92]
[1765194557892,1.09999999,138.52,138.49,18.0001388]
[1765194558207,1.09999999,138.52,138.5,2.85940085]
[1765194559094,0.1,138.52,138.5,2.85940085]
[1765194559744,0.1,138.52,138.51,2.13940085]
[1765194560214,0.1,138.52,138.51,9.35909617]
[1765194561596,1.09999999,138.52,138.51,9.35909617]
[1765194562514,0.99999999,138.51,138.49,2.13940085]
[1765194562686,0.99999999,138.51,138.5,7.9]
[1765194562892,0.99999999,138.51,138.5,17.25961745]
[1765194564296,1.71999999,138.51,138.5,7.9]
[1765194564526,0.99999999,138.51,138.5,7.9]
[1765194567120,1.71999999,138.51,138.5,7.9]
[1765194567322,1.09999999,138.52,138.5,17.93961745]
[1765194568020,0.99999999,138.51,138.5,17.93961745]
[1765194569502,0.99999999,138.51,138.5,17.25961745]
[1765194570396,0.99999999,138.51,138.5,17.93961745]
[1765194571226,0.99999999,138.51,138.5,15.8002166]
[1765194572726,3.09999999,138.52,138.5,17.93961745]
[1765194572932,3.09999999,138.52,138.51,2.81940085]
[1765194573432,2.1,138.52,138.51,2.81940085]
[1765194574835,2.1,138.52,138.51,9.35909617]
[1765194575033,3.09999999,138.52,138.51,9.35909617]
[1765194581929,3.81999999,138.52,138.5,2.13940085]
[1765194582135,3.09999999,138.52,138.51,7.9]
[1765194582427,0.99999999,138.5,138.49,7.9]
[1765194582846,1.71999999,138.5,138.49,7.9]
[1765194585040,0.99999999,138.5,138.49,7.9]
[1765194585339,0.99999999,138.5,138.49,10.03940085]
[1765194586839,0.99999999,138.51,138.49,17.9401388]
[1765194588307,0.99999999,138.51,138.5,2.13940085]
[1765194588633,3.09999999,138.52,138.5,2.81940085]
[1765194588934,3.09999999,138.52,138.51,10.03940085]
[1765194589631,2.1,138.52,138.51,10.71940085]
[1765194590440,2.1,138.52,138.51,17.93909617]
[1765194593420,3.77999999,138.52,138.49,18.05184489]
[1765194593630,0.99999999,138.47,138.45,0.71]
[1765194593937,0.99999999,138.44,138.41,7.22482013]
[1765194594148,0.99999999,138.44,138.42,7.9]
[1765194594346,0.99999999,138.45,138.42,10.03940085]
[1765194594646,0.99999999,138.44,138.42,10.03940085]
[1765194595056,0.99999999,138.44,138.42,7.9]
[1765194595263,0.68,138.43,138.42,7.9]
[1765194596446,1.67999999,138.43,138.4,9.36467501]
[1765194596626,1.67999999,138.43,138.4,17.26467501]
[1765194596828,0.68,138.42,138.4,17.26467501]
[1765194597052,0.99999999,138.41,138.4,7.9]
[1765194597231,1.67999999,138.42,138.4,7.9]
[1765194597552,0.99999999,138.41,138.4,7.9]
[1765194597748,1.67999999,138.41,138.4,7.9]
[1765194599753,0.99999999,138.39,138.37,7.9]
[1765194600127,1.70999999,138.38,138.37,7.9]
[1765194600328,1.70999999,138.38,138.35,17.48725725]
[1765194600683,0.99999999,138.36,138.35,0.2]
[1765194601156,0.99999999,138.36,138.35,7.42804481]
[1765194601359,1.70999999,138.36,138.35,7.42804481]
[1765194601559,0.99999999,138.36,138.35,7.42804481]
[1765194601736,0.99999999,138.37,138.35,11.44345432]
[1765194602066,0.99999999,138.37,138.35,3.54540951]
[1765194602365,0.99999999,138.36,138.35,0.2]
[1765194602957,0.99999999,138.36,138.35,10.77345432]
[1765194603132,16.308864,138.42,138.35,11.44345432]
[1765194603133,0.99999999,138.37,138.35,11.44345432]
[1765194603332,0.99999999,138.37,138.36,3.34540951]
[1765194603555,0.99999999,138.39,138.37,7.22700007]
[1765194603760,0.99999999,138.4,138.38,3.34540951]
[1765194603968,0.99999999,138.4,138.39,11.26540951]
[1765194604831,0.99999999,138.41,138.39,18.4913185]
[1765194605061,0.99999999,138.41,138.4,4.01540951]
[1765194606054,0.99999999,138.41,138.39,7.92]
[1765194606462,1.70999999,138.41,138.39,7.92]
[1765194606647,1.70999999,138.4,138.39,7.92]
[1765194606833,0.99999999,138.39,138.37,11.26540951]
[1765194607240,1.70999999,138.39,138.37,11.26540951]
[1765194607664,0.99999999,138.38,138.37,11.26540951]
[1765194607959,0.99999999,138.38,138.37,18.49240958]
[1765194608547,0.99999999,138.39,138.37,19.16240958]
[1765194608755,0.99999999,138.39,138.38,3.34540951]
[1765194609662,0.99999999,138.39,138.38,10.57188732]
[1765194610178,0.99999999,138.39,138.38,11.24188732]
[1765194610671,0.99999999,138.4,138.38,17.20695718]
[1765194611774,0.99999999,138.4,138.38,7.89647781]
[1765194611956,0.99999999,138.39,138.38,7.89647781]
[1765194612155,0.99999999,138.39,138.38,7.22647781]
[1765194612375,0.99999999,138.39,138.38,16.53695718]
[1765194612667,0.99999999,138.4,138.38,16.53695718]
[1765194612875,0.99999999,138.4,138.39,9.31047937]
[1765194613080,0.99999999,138.41,138.39,9.98047937]
[1765194613276,0.99999999,138.4,138.39,9.98047937]
[1765194613448,0.99999999,138.42,138.39,24.456435]
[1765194613648,0.99999999,138.41,138.4,0.67]
[1765194613959,0.99999999,138.43,138.4,0.67]
[1765194614873,0.99999999,138.43,138.42,9.31047937]
[1765194615078,0.99999999,138.43,138.42,17.23047937]
[1765194615655,0.99999999,138.43,138.42,24.4548689]
[1765194617372,1.70999999,138.43,138.42,7.92]
[1765194617570,0.99999999,138.43,138.42,25.1248689]
[1765194618769,0.99999999,138.45,138.42,25.1248689]
[1765194618975,0.99999999,138.46,138.44,9.31047937]
[1765194619276,0.99999999,138.46,138.45,9.31047937]
[1765194619476,0.99999999,138.47,138.45,16.53330349]
[1765194619667,0.99999999,138.46,138.45,7.89282412]
[1765194619869,0.99999999,138.46,138.45,15.81282412]
[1765194620766,0.99999999,138.46,138.45,25.12330349]
[1765194621461,0.99999999,138.47,138.45,25.12330349]
[1765194621670,0.99999999,138.46,138.45,15.81282412]
[1765194621864,0.99999999,138.46,138.45,25.12330349]
[1765194623669,0.99999999,138.45,138.44,7.92]
[1765194623883,1.71999999,138.45,138.44,7.92]
[1765194624270,0.99999999,138.45,138.44,7.92]
[1765194625091,0.99999999,138.45,138.44,15.14334585]
[1765194625588,0.99999999,138.45,138.44,7.92]
[1765194627884,0.99999999,138.45,138.44,17.23047937]
[1765194629184,0.99999999,138.45,138.44,24.45382522]
[1765194629374,0.99999999,138.45,138.44,17.23047937]
[1765194629975,0.99999999,138.45,138.44,24.45382522]
[1765194630381,0.99999999,138.45,138.44,25.16382522]
[1765194630559,0.99999999,138.46,138.44,25.16382522]
[1765194630765,0.99999999,138.46,138.45,9.31047937]
[1765194630964,0.99999999,138.46,138.45,10.02047937]
[1765194631371,0.99999999,138.46,138.45,16.53330349]
[1765194631572,0.99999999,138.47,138.45,16.53330349]
[1765194631786,0.99999999,138.46,138.45,17.24330349]
[1765194631978,0.99999999,138.46,138.45,16.53330349]
[1765194632180,2.82,138.52,138.45,35.3003638]
[1765194632385,0.72,138.51,138.49,9.31047937]
[1765194632887,0.72,138.51,138.49,3.33760009]
[1765194633092,0.72,138.51,138.5,3.33760009]
[1765194633270,2.1,138.52,138.5,3.33760009]
[1765194633469,2.1,138.52,138.51,3.33760009]
[1765194634291,2.82,138.52,138.5,3.33760009]
[1765194634599,2.1,138.52,138.5,3.33760009]
[1765194635070,2.1,138.52,138.49,7.22073795]
[1765194635274,2.1,138.52,138.49,11.25760009]
[1765194635275,0.72,138.51,138.49,11.25760009]
[1765194637186,7.93980734,138.51,138.47,18.47917271]
[1765194637382,0.72,138.5,138.47,18.47917271]
[1765194637589,0.72,138.5,138.48,3.33760009]
[1765194638769,0.72,138.5,138.48,10.55884787]
[1765194638974,0.72,138.5,138.49,3.33760009]
[1765194639772,2.1,138.52,138.49,10.55833804]
[1765194639973,2.82,138.52,138.49,10.55833804]
[1765194641371,2.82,138.52,138.49,11.26833804]
[1765194641574,2.82,138.52,138.5,3.33760009]
[1765194642269,2.82,138.52,138.49,10.55833804]
[1765194643594,7.6,138.51,138.49,10.55833804]
[1765194645080,0.72,138.5,138.48,3.33760009]
[1765194646009,0.72,138.5,138.47,18.4790975]
[1765194646994,0.72,138.5,138.47,19.1890975]
[1765194648097,0.72,138.5,138.48,10.55885657]
[1765194650613,0.72,138.5,138.47,19.18923948]
[1765194652692,15.47975231,138.51,138.48,3.33760009]
[1765194654504,15.47975231,138.51,138.48,4.05760009]
[1765194655386,7.6,138.51,138.5,3.33760009]
[1765194655579,15.47978528,138.51,138.49,7.92]
[1765194655782,7.6,138.51,138.49,7.92]
[1765194655986,8.26,138.51,138.49,7.92]
[1765194656386,7.6,138.51,138.5,3.33760009]
[1765194660203,2.1,138.52,138.5,10.55776105]
[1765194660412,2.1,138.52,138.51,3.33760009]
[1765194661408,2.1,138.52,138.5,11.23776105]
[1765194662712,2.1,138.52,138.51,2.13559869]
[1765194665094,2.79,138.52,138.49,17.25617072]
[1765194665292,2.79,138.52,138.49,17.93617072]
[1765194666682,10.00931639,138.52,138.49,17.93617072]
[1765194668002,2.79,138.52,138.49,17.93617072]
[1765194670202,0.69,138.51,138.49,2.13559869]
[1765194670409,0.69,138.51,138.48,15.12103928]
[1765194672217,0.69,138.51,138.48,17.93663797]
[1765194672512,9.31945184,138.52,138.48,17.93663797]
[1765194672719,0.69,138.51,138.48,17.93663797]
[1765194672899,10.00945184,138.52,138.48,17.93663797]
[1765194673099,10.00945184,138.52,138.49,7.90066607]
[1765194673903,10.00945184,138.52,138.49,10.03626476]
[1765194675909,10.00945184,138.52,138.49,7.90066607]
[1765194677101,2.79,138.52,138.49,10.03626476]
[1765194679528,2.79,138.52,138.49,7.90066607]
[1765194681634,2.79,138.52,138.49,10.03626476]
[1765194685134,2.79,138.52,138.49,10.0361276]
[1765194686214,10.00919579,138.52,138.49,10.0361276]
[1765194688639,0.72,138.51,138.47,64.03559869]
[1765194688810,4.86035745,138.5,138.47,69.12153567]
[1765194689012,0.72,138.51,138.47,69.12153567]
[1765194689215,5.5803333,138.5,138.47,69.12153567]
[1765194689432,0.72,138.5,138.47,69.80153567]
[1765194689636,7.94027871,138.5,138.47,69.80153567]
[1765194690439,7.94027871,138.5,138.47,71.93713436]
[1765194690738,0.72,138.5,138.47,71.93713436]
[1765194691316,5.58000975,138.5,138.47,71.93713436]
[1765194691533,5.58000975,138.5,138.48,2.13559869]
[1765194692142,0.72,138.5,138.48,2.13559869]
[1765194692949,5.58006325,138.5,138.48,1.62069869]
[1765194693946,4.86006325,138.5,138.48,0.68]
[1765194695342,7.21992336,138.51,138.48,2.81559869]
[1765194695717,12.08361484,138.51,138.49,0.68]
[1765194695934,12.80361484,138.51,138.48,2.81559869]
[1765194696642,12.08361484,138.51,138.47,7.22153567]
[1765194696854,7.93992336,138.51,138.48,0.68]
[1765194697319,7.93992336,138.51,138.48,2.81559869]
[1765194697520,4.86387038,138.5,138.48,2.81559869]
[1765194699340,4.86411944,138.5,138.48,2.81559869]
[1765194700139,7.93992336,138.51,138.48,2.81559869]
[1765194700440,4.86438892,138.5,138.49,0.68]
[1765194700953,4.86438892,138.5,138.48,0.68]
[1765194701248,4.86409017,138.5,138.48,0.68]
[1765194701620,7.93992336,138.51,138.48,0.68]
[1765194702048,4.86399321,138.5,138.48,0.68]
[1765194702450,7.93992336,138.51,138.48,0.68]
[1765194702941,7.93992336,138.51,138.5,2.13559869]
[1765194702942,4.86455761,138.51,138.5,2.13559869]
[1765194703125,2.1,138.52,138.5,2.13559869]
[1765194703338,2.1,138.52,138.51,2.81559869]
[1765194704040,2.1,138.52,138.51,10.03529401]
[1765194704431,2.1,138.52,138.51,18.84523893]
[1765194704747,0.1,138.55,138.54,2.13559869]
[1765194704946,0.1,138.55,138.54,10.03559869]
[1765194705248,0.1,138.55,138.54,10.71559869]
[1765194706143,0.1,138.55,138.54,17.93373063]
[1765194707652,0.1,138.55,138.54,7.21813194]
[1765194707841,0.82,138.55,138.52,17.25433948]
[1765194708044,2.95559869,138.55,138.52,7.9]
[1765194708237,2.95559869,138.55,138.51,7.21968775]
[1765194708548,0.82,138.55,138.52,10.0347706]
[1765194708921,0.82,138.55,138.52,2.81559869]
[1765194709822,0.82,138.55,138.52,10.0345646]
[1765194710246,0.82,138.55,138.52,7.89896591]
[1765194714356,10.17357453,138.55,138.5,77.0197623]
[1765194714537,10.17357453,138.55,138.5,79.85536099]